[Event "FIDE Grand Swiss 2023"]
[Site "Villa Marina, Douglas, Isle of Man"]
[Date "2023.10.29"]
[Round "5.18"]
[White "Grandelius, Nils"]
[Black "Yakubboev, Nodirbek"]
[Result "0-1"]
[WhiteElo "2689"]
[BlackElo "2616"]
[EventDate "2023.10.25"]
[ECO "C78"]
[PlyCount "94"]
[BlackFideId "14203987"]
[TimeControl "40/100 + 20/50 + 15 + 30s/move"]
[WhiteFideId "1710400"]

1.e4 {[%clk 01:40:36] [%emt 00:00:22]} 1...e5 {[%clk 01:40:20] [%emt 00:00:27]} 
2.Nf3 {[%clk 01:40:53] [%emt 00:00:27]} 2...Nc6 {[%clk 01:40:43] [%emt
00:00:07]} 3.Bb5 {[%clk 01:41:03] [%emt 00:00:20]} 3...a6 {[%clk 01:40:56] [%emt
00:00:17]} 4.Ba4 {[%clk 01:41:16] [%emt 00:00:17]} 4...Nf6 {[%clk 01:41:13]
[%emt 00:00:13]} 5.O-O {[%clk 01:40:48] [%emt 00:00:56]} 5...b5 {[%clk 01:39:44]
[%emt 00:02:01]} 6.Bb3 {[%clk 01:41:05] [%emt 00:00:13]} 6...Bc5 {[%clk
01:40:12] [%emt 00:00:02]} 7.c3 {[%clk 01:40:01] [%emt 00:01:34]} 7...d6 {[%clk
01:40:33] [%emt 00:00:09]} 8.d4 {[%clk 01:40:24] [%emt 00:00:06]} 8...Bb6 
{[%clk 01:40:57] [%emt 00:00:07]} 9.Be3 {[%clk 01:40:46] [%emt 00:00:07]} 
9...O-O {[%clk 01:41:01] [%emt 00:00:26]} 10.Nbd2 {[%clk 01:41:01] [%emt
00:00:15]} 10...h6 {[%clk 01:40:14] [%emt 00:01:17]} 11.h3 {[%clk 01:41:13]
[%emt 00:00:18]} 11...Re8 {[%clk 01:40:21] [%emt 00:00:23]} 12.Bc2 {[%clk
01:40:52] [%emt 00:00:51]} 12...Rb8 {[%clk 01:39:58] [%emt 00:00:54]} 13.Rc1 
{[%clk 01:40:29] [%emt 00:00:53]} 13...Bb7 {[%clk 01:25:22] [%emt 00:15:07]} 
14.d5 {[%clk 01:39:33] [%emt 00:01:24]} 14...Bxe3 {[%clk 01:11:02] [%emt
00:14:51]} 15.fxe3 {[%clk 01:39:20] [%emt 00:00:42]} 15...Ne7 {[%clk 01:11:27]
[%emt 00:00:06]} 16.Nh4 {[%clk 01:39:22] [%emt 00:00:28]} 16...Nh7 {[%clk
01:10:53] [%emt 00:01:03]} 17.Qh5 {[%clk 01:38:18] [%emt 00:01:33]} 17...Rf8 
{[%clk 01:10:53] [%emt 00:00:32]} 18.Rf2 {[%clk 01:38:20] [%emt 00:00:28]} 
18...Qe8 {[%clk 01:07:26] [%emt 00:03:57]} 19.Rcf1 {[%clk 01:25:34] [%emt
00:13:16]} 19...Bc8 {[%clk 00:51:40] [%emt 00:16:15]} 20.c4 {[%clk 00:53:55]
[%emt 00:32:09]} 20...bxc4 {[%clk 00:37:14] [%emt 00:14:57]} 21.Ba4 {[%clk
00:37:45] [%emt 00:16:40]} 21...Bd7 {[%clk 00:15:12] [%emt 00:22:32]} 22.Bxd7 
{[%clk 00:37:51] [%emt 00:00:24]} 22...Qxd7 {[%clk 00:15:40] [%emt 00:00:01]} 
23.Rxf7 {[%clk 00:37:44] [%emt 00:00:37]} 23...Nf6 {[%clk 00:15:48] [%emt
00:00:22]} 24.Rxf8+ {[%clk 00:19:21] [%emt 00:18:53]} 24...Rxf8 {[%clk 00:16:17]
[%emt 00:00:02]} 25.Qd1 {[%clk 00:18:53] [%emt 00:00:57]} 25...c3 {[%clk
00:15:58] [%emt 00:00:49]} 26.bxc3 {[%clk 00:19:17] [%emt 00:00:07]} 26...Qb5 
{[%clk 00:16:27]} 27.c4 {[%clk 00:17:46] [%emt 00:02:00]} 27...Qb2 {[%clk
00:16:15] [%emt 00:00:41]} 28.Qc1 {[%clk 00:11:26] [%emt 00:06:52]} 28...Qxa2 
{[%clk 00:16:33] [%emt 00:00:12]} 29.Qc3 {[%clk 00:11:46] [%emt 00:00:09]} 
29...Nxe4 {[%clk 00:16:18] [%emt 00:00:46]} 30.Nxe4 {[%clk 00:07:43] [%emt
00:04:34]} 30...Rxf1+ {[%clk 00:16:45] [%emt 00:00:02]} 31.Kxf1 {[%clk 00:08:10]
[%emt 00:00:03]} 31...Qb1+ {[%clk 00:17:07] [%emt 00:00:08]} 32.Kf2 {[%clk
00:08:30] [%emt 00:00:11]} 32...Qxe4 {[%clk 00:17:33] [%emt 00:00:02]} 33.Nf3 
{[%clk 00:08:56] [%emt 00:00:05]} 33...Qb1 {[%clk 00:15:28] [%emt 00:02:35]} 
34.Qa5 {[%clk 00:07:34] [%emt 00:01:52]} 34...Qc2+ {[%clk 00:14:14] [%emt
00:01:43]} 35.Nd2 {[%clk 00:07:50] [%emt 00:00:15]} 35...Kh7 {[%clk 00:04:31]
[%emt 00:10:13]} 36.Ke2 {[%clk 00:03:31] [%emt 00:04:48]} 36...e4 {[%clk
00:02:49] [%emt 00:02:13]} 37.Qa3 {[%clk 00:02:32] [%emt 00:01:29]} 37...Nf5 
{[%clk 00:01:35] [%emt 00:01:43]} 38.g4 {[%clk 00:01:38] [%emt 00:01:24]} 
38...Ng3+ {[%clk 00:00:56] [%emt 00:01:10]} 39.Ke1 {[%clk 00:02:07] [%emt
00:00:02]} 39...a5 {[%clk 00:00:40] [%emt 00:00:46]} 40.Qb3 {[%clk 00:00:40]
[%emt 00:01:56]} 40...Qd3 {[%clk 00:00:38] [%emt 00:00:32]} 41.Qxd3 {[%clk
00:42:00] [%emt 00:09:10]} 41...exd3 {[%clk 00:50:19] [%emt 00:00:48]} 42.Kf2 
{[%clk 00:27:32] [%emt 00:14:58]} 42...Ne2 {[%clk 00:47:11] [%emt 00:03:38]} 
43.e4 {[%clk 00:22:06] [%emt 00:05:57]} 43...a4 {[%clk 00:41:37] [%emt
00:06:04]} 44.Ke3 {[%clk 00:20:00] [%emt 00:02:36]} 44...a3 {[%clk 00:41:28]
[%emt 00:00:40]} 45.Nb3 {[%clk 00:20:09] [%emt 00:00:20]} 45...a2 {[%clk
00:41:34] [%emt 00:00:24]} 46.e5 {[%clk 00:18:48] [%emt 00:01:50]} 46...dxe5 
{[%clk 00:41:25] [%emt 00:00:39]} 47.c5 {[%clk 00:19:13] [%emt 00:00:06]} 
47...Nd4 {[%clk 00:41:18] [%emt 00:00:37]} 0-1

[Event "FIDE Grand Swiss 2023"]
[Site "Villa Marina, Douglas, Isle of Man"]
[Date "2023.10.29"]
[Round "5.19"]
[White "Kuybokarov, Temur"]
[Black "Bacrot, Etienne"]
[Result "1/2-1/2"]
[WhiteElo "2584"]
[BlackElo "2669"]
[EventDate "2023.10.25"]
[PlyCount "98"]
[BlackFideId "605506"]
[TimeControl "40/100 + 20/50 + 15 + 30s/move"]
[WhiteFideId "14203049"]

1.e4 {[%clk 01:40:21] [%emt 00:00:38]} 1...c5 {[%clk 01:40:55] [%emt 00:00:06]} 
2.Nf3 {[%clk 01:40:44] [%emt 00:00:07]} 2...e6 {[%clk 01:41:19] [%emt 00:00:05]} 
3.d4 {[%clk 01:40:51] [%emt 00:00:23]} 3...cxd4 {[%clk 01:41:43] [%emt
00:00:07]} 4.Nxd4 {[%clk 01:41:14] [%emt 00:00:07]} 4...Nc6 {[%clk 01:42:05]
[%emt 00:00:07]} 5.Nc3 {[%clk 01:41:17] [%emt 00:00:27]} 5...Qc7 {[%clk
01:42:15] [%emt 00:00:20]} 6.Be3 {[%clk 01:40:50] [%emt 00:00:57]} 6...a6 
{[%clk 01:42:26] [%emt 00:00:19]} 7.Qf3 {[%clk 01:40:49] [%emt 00:00:31]} 
7...b5 {[%clk 01:41:11] [%emt 00:01:45]} 8.O-O-O {[%clk 01:34:48] [%emt
00:06:31]} 8...Bb7 {[%clk 01:19:44] [%emt 00:21:58]} 9.Nxc6 {[%clk 01:07:26]
[%emt 00:27:53]} 9...Qxc6 {[%clk 01:17:22] [%emt 00:02:51]} 10.Bd3 {[%clk
01:00:46] [%emt 00:07:10]} 10...b4 {[%clk 01:09:03] [%emt 00:08:50]} 11.Ne2 
{[%clk 01:00:36] [%emt 00:00:40]} 11...Nf6 {[%clk 01:09:28] [%emt 00:00:04]} 
12.Nd4 {[%clk 00:52:25] [%emt 00:08:42]} 12...Qc7 {[%clk 01:06:39] [%emt
00:03:18]} 13.Bf4 {[%clk 00:49:46] [%emt 00:03:10]} 13...d6 {[%clk 00:54:58]
[%emt 00:12:10]} 14.Qe2 {[%clk 00:46:41] [%emt 00:03:35]} 14...e5 {[%clk
00:48:35] [%emt 00:06:53]} 15.Bg3 {[%clk 00:46:35] [%emt 00:00:37]} 15...g6 
{[%clk 00:48:57] [%emt 00:00:08]} 16.Nb3 {[%clk 00:35:16] [%emt 00:11:49]} 
16...Bh6+ {[%clk 00:47:50] [%emt 00:01:37]} 17.Kb1 {[%clk 00:35:32] [%emt
00:00:14]} 17...O-O {[%clk 00:48:07] [%emt 00:00:12]} 18.h4 {[%clk 00:33:15]
[%emt 00:02:48]} 18...Nh5 {[%clk 00:44:53] [%emt 00:03:44]} 19.Bh2 {[%clk
00:32:38] [%emt 00:01:06]} 19...a5 {[%clk 00:45:13] [%emt 00:00:11]} 20.Nd2 
{[%clk 00:26:29] [%emt 00:06:39]} 20...a4 {[%clk 00:43:06] [%emt 00:02:38]} 
21.Nc4 {[%clk 00:26:01] [%emt 00:00:58]} 21...Rfc8 {[%clk 00:42:55] [%emt
00:00:40]} 22.f3 {[%clk 00:21:27] [%emt 00:05:04]} 22...Ba6 {[%clk 00:31:14]
[%emt 00:12:11]} 23.Nxe5 {[%clk 00:13:40] [%emt 00:08:17]} 23...b3 {[%clk
00:29:24] [%emt 00:02:20]} 24.c3 {[%clk 00:13:44] [%emt 00:00:26]} 24...bxa2+ 
{[%clk 00:28:39] [%emt 00:01:15]} 25.Ka1 {[%clk 00:13:28] [%emt 00:00:46]} 
25...Bxd3 {[%clk 00:25:52] [%emt 00:03:17]} 26.Nxd3 {[%clk 00:13:51] [%emt
00:00:08]} 26...a3 {[%clk 00:26:18] [%emt 00:00:04]} 27.Nb4 {[%clk 00:12:39]
[%emt 00:01:43]} 27...Bg7 {[%clk 00:21:05] [%emt 00:05:43]} 28.Nd5 {[%clk
00:10:14] [%emt 00:02:54]} 28...axb2+ {[%clk 00:19:34] [%emt 00:02:01]} 29.Qxb2 
{[%clk 00:10:38] [%emt 00:00:06]} 29...Qa5 {[%clk 00:19:59] [%emt 00:00:04]} 
30.Bxd6 {[%clk 00:10:09] [%emt 00:01:00]} 30...Bxc3 {[%clk 00:08:08] [%emt
00:12:21]} 31.Nxc3 {[%clk 00:10:26] [%emt 00:00:13]} 31...Qxc3 {[%clk 00:08:35]
[%emt 00:00:03]} 32.Qxc3 {[%clk 00:10:35] [%emt 00:00:21]} 32...Rxc3 {[%clk
00:09:00] [%emt 00:00:04]} 33.Rd2 {[%clk 00:08:45] [%emt 00:02:20]} 33...f6 
{[%clk 00:09:00] [%emt 00:00:31]} 34.Rhd1 {[%clk 00:08:43] [%emt 00:00:32]} 
34...Ng7 {[%clk 00:09:14] [%emt 00:00:16]} 35.Be7 {[%clk 00:07:01] [%emt
00:02:11]} 35...Ne8 {[%clk 00:07:00] [%emt 00:02:45]} 36.Rd8 {[%clk 00:06:15]
[%emt 00:01:16]} 36...Rxd8 {[%clk 00:05:40] [%emt 00:01:51]} 37.Rxd8 {[%clk
00:06:35] [%emt 00:00:09]} 37...Kf7 {[%clk 00:04:59] [%emt 00:01:10]} 38.Bb4 
{[%clk 00:06:58] [%emt 00:00:08]} 38...Rc2 {[%clk 00:05:05] [%emt 00:00:24]} 
39.Rd7+ {[%clk 00:06:51] [%emt 00:00:37]} 39...Kg8 {[%clk 00:05:32] [%emt
00:00:02]} 40.Rd2 {[%clk 00:06:52] [%emt 00:00:29]} 40...Rxd2 {[%clk 00:04:05]
[%emt 00:01:57]} 41.Bxd2 {[%clk 00:07:18] [%emt 00:00:05]} 41...f5 {[%clk
00:00:36] [%emt 00:03:59]} 42.exf5 {[%clk 00:06:10] [%emt 00:01:38]} 42...gxf5 
{[%clk 00:00:41] [%emt 00:00:24]} 43.Kxa2 {[%clk 00:06:28] [%emt 00:00:13]} 
43...Kf7 {[%clk 00:48:09] [%emt 00:03:01]} 44.Kb3 {[%clk 00:56:51] [%emt
00:00:09]} 44...h5 {[%clk 00:47:56] [%emt 00:00:42]} 45.Kc4 {[%clk 00:57:05]
[%emt 00:00:16]} 45...Ke6 {[%clk 00:48:21] [%emt 00:00:05]} 46.Kd4 {[%clk
00:54:15] [%emt 00:03:20]} 46...Nc7 {[%clk 00:47:16] [%emt 00:01:35]} 47.Bf4 
{[%clk 00:54:21] [%emt 00:00:24]} 47...Nd5 {[%clk 00:47:22] [%emt 00:00:23]} 
48.Bb8 {[%clk 00:54:01] [%emt 00:00:51]} 48...Nb4 {[%clk 00:46:39] [%emt
00:01:12]} 49.Bg3 {[%clk 00:53:19] [%emt 00:01:11]} 49...Nd5 {[%clk 00:46:42]
[%emt 00:00:28]} 1/2-1/2

[Event "FIDE Grand Swiss 2023"]
[Site "Villa Marina, Douglas, Isle of Man"]
[Date "2023.10.29"]
[Round "5.20"]
[White "Maurizzi, Marc`andria"]
[Black "Wojtaszek, Radoslaw"]
[Result "0-1"]
[WhiteElo "2555"]
[BlackElo "2668"]
[EventDate "2023.10.25"]
[ECO "C47"]
[PlyCount "84"]
[BlackFideId "1118358"]
[TimeControl "40/100 + 20/50 + 15 + 30s/move"]
[WhiteFideId "36083534"]

1.e4 {[%clk 01:40:52] [%emt 00:00:07]} 1...e5 {[%clk 01:40:53] [%emt 00:00:07]} 
2.Nf3 {[%clk 01:40:39] [%emt 00:00:43]} 2...Nc6 {[%clk 01:41:17] [%emt
00:00:07]} 3.Nc3 {[%clk 01:40:59] [%emt 00:00:10]} 3...Nf6 {[%clk 01:41:37]
[%emt 00:00:09]} 4.a4 {[%clk 01:41:27] [%emt 00:00:03]} 4...a6 {[%clk 01:32:07]
[%emt 00:09:59]} 5.d4 {[%clk 01:41:35] [%emt 00:00:23]} 5...exd4 {[%clk
01:32:22] [%emt 00:00:15]} 6.Nxd4 {[%clk 01:42:01] [%emt 00:00:04]} 6...Bb4 
{[%clk 01:32:28] [%emt 00:00:24]} 7.Nxc6 {[%clk 01:42:27] [%emt 00:00:04]} 
7...bxc6 {[%clk 01:32:54] [%emt 00:00:04]} 8.Bd3 {[%clk 01:42:52] [%emt
00:00:05]} 8...d5 {[%clk 01:32:31] [%emt 00:00:53]} 9.exd5 {[%clk 01:43:18]
[%emt 00:00:04]} 9...Qe7+ {[%clk 01:27:02] [%emt 00:05:59]} 10.Be2 {[%clk
01:25:37] [%emt 00:18:12]} 10...Nxd5 {[%clk 01:11:56] [%emt 00:15:36]} 11.Bd2 
{[%clk 01:24:47] [%emt 00:01:19]} 11...Nxc3 {[%clk 01:06:58] [%emt 00:05:29]} 
12.bxc3 {[%clk 01:25:06] [%emt 00:00:11]} 12...Bd6 {[%clk 01:06:27] [%emt
00:01:00]} 13.O-O {[%clk 01:25:22] [%emt 00:00:14]} 13...O-O {[%clk 00:59:45]
[%emt 00:07:12]} 14.Bd3 {[%clk 01:23:15] [%emt 00:02:38]} 14...Qh4 {[%clk
00:52:06] [%emt 00:08:08]} 15.g3 {[%clk 01:23:25] [%emt 00:00:20]} 15...Qg4 
{[%clk 00:50:19] [%emt 00:02:17]} 16.a5 {[%clk 01:15:06] [%emt 00:08:50]} 
16...Qxd1 {[%clk 00:50:01] [%emt 00:00:48]} 17.Rfxd1 {[%clk 01:15:31] [%emt
00:00:05]} 17...Bg4 {[%clk 00:49:57] [%emt 00:00:33]} 18.Re1 {[%clk 01:14:50]
[%emt 00:01:11]} 18...Rfd8 {[%clk 00:47:34] [%emt 00:02:54]} 19.Bf4 {[%clk
01:06:46] [%emt 00:08:34]} 19...Bxf4 {[%clk 00:44:42] [%emt 00:03:22]} 20.gxf4 
{[%clk 01:07:11] [%emt 00:00:05]} 20...Kf8 {[%clk 00:44:38] [%emt 00:00:34]} 
21.Re5 {[%clk 01:04:25] [%emt 00:03:16]} 21...f6 {[%clk 00:40:01] [%emt
00:05:07]} 22.Rc5 {[%clk 00:53:50] [%emt 00:11:05]} 22...Bf3 {[%clk 00:40:24]
[%emt 00:00:06]} 23.Re1 {[%clk 00:52:28] [%emt 00:01:53]} 23...Re8 {[%clk
00:28:17] [%emt 00:12:37]} 24.Re3 {[%clk 00:49:52] [%emt 00:03:06]} 24...Rxe3 
{[%clk 00:26:48] [%emt 00:01:59]} 25.fxe3 {[%clk 00:50:10] [%emt 00:00:12]} 
25...Ke7 {[%clk 00:27:16] [%emt 00:00:02]} 26.Bxh7 {[%clk 00:45:45] [%emt
00:04:56]} 26...Bd5 {[%clk 00:25:19] [%emt 00:02:27]} 27.c4 {[%clk 00:41:45]
[%emt 00:04:29]} 27...Kd6 {[%clk 00:25:42] [%emt 00:00:07]} 28.Rxd5+ {[%clk
00:42:14] [%emt 00:00:02]} 28...cxd5 {[%emt 00:00:10]} 29.cxd5 {[%clk 00:42:42]} 
29...Kxd5 {[%clk 00:22:43] [%emt 00:03:50]} 30.Bd3 {[%clk 00:43:09] [%emt
00:00:03]} 30...c5 {[%clk 00:20:26] [%emt 00:02:46]} 31.Be2 {[%clk 00:43:07]
[%emt 00:00:33]} 31...Ra7 {[%clk 00:16:21] [%emt 00:04:35]} 32.Kf2 {[%clk
00:43:34] [%emt 00:00:02]} 32...c4 {[%clk 00:16:35] [%emt 00:00:16]} 33.Ke1 
{[%clk 00:43:29] [%emt 00:00:36]} 33...c3 {[%clk 00:15:04] [%emt 00:02:02]} 
34.Kf2 {[%clk 00:43:34] [%emt 00:00:24]} 34...Kc5 {[%clk 00:15:26] [%emt
00:00:09]} 35.e4 {[%clk 00:42:21] [%emt 00:01:42]} 35...Kb4 {[%clk 00:14:11]
[%emt 00:01:45]} 36.Ke3 {[%clk 00:42:39] [%emt 00:00:12]} 36...Kxa5 {[%clk
00:14:17] [%emt 00:00:23]} 37.e5 {[%clk 00:43:08] [%emt 00:00:02]} 37...Kb4 
{[%clk 00:13:26] [%emt 00:01:21]} 38.e6 {[%clk 00:43:03] [%emt 00:00:35]} 
38...Kc5 {[%clk 00:11:07] [%emt 00:02:49]} 39.Kd3 {[%clk 00:43:11] [%emt
00:00:21]} 39...Kd5 {[%clk 00:09:43] [%emt 00:01:56]} 40.Kxc3 {[%clk 00:43:19]
[%emt 00:00:20]} 40...Kxe6 {[%clk 00:09:52] [%emt 00:00:22]} 41.Kb4 {[%clk
00:43:48] [%emt 00:00:02]} 41...Kd6 {[%clk 00:09:46] [%emt 00:00:35]} 42.c4 
{[%clk 00:44:16] [%emt 00:00:03]} 42...Rb7+ {[%clk 00:09:21] [%emt 00:00:55]} 0-1

[Event "FIDE Grand Swiss 2023"]
[Site "Villa Marina, Douglas, Isle of Man"]
[Date "2023.10.29"]
[Round "5.21"]
[White "Narayanan.S.L"]
[Black "Gukesh, D"]
[Result "1-0"]
[WhiteElo "2651"]
[BlackElo "2758"]
[EventDate "2023.10.25"]
[ECO "E71"]
[PlyCount "93"]
[BlackFideId "46616543"]
[TimeControl "40/100 + 20/50 + 15 + 30s/move"]
[WhiteFideId "5058422"]

1.d4 {[%clk 01:40:57] [%emt 00:00:02]} 1...Nf6 {[%clk 01:40:53] [%emt 00:00:07]} 
2.c4 {[%clk 01:41:22] [%emt 00:00:06]} 2...g6 {[%clk 01:41:15] [%emt 00:00:08]} 
3.Nc3 {[%clk 01:41:42] [%emt 00:00:10]} 3...Bg7 {[%clk 01:41:38] [%emt
00:00:07]} 4.e4 {[%clk 01:42:07] [%emt 00:00:05]} 4...d6 {[%clk 01:42:04] [%emt
00:00:05]} 5.h3 {[%clk 01:42:26] [%emt 00:00:10]} 5...e5 {[%clk 01:40:44] [%emt
00:01:50]} 6.d5 {[%clk 01:42:48] [%emt 00:00:08]} 6...a5 {[%clk 01:41:08] [%emt
00:00:06]} 7.Be3 {[%clk 01:42:53] [%emt 00:00:25]} 7...Na6 {[%clk 01:41:30]
[%emt 00:00:08]} 8.Be2 {[%clk 01:43:12] [%emt 00:00:11]} 8...h5 {[%clk 01:39:20]
[%emt 00:02:41]} 9.Nf3 {[%clk 01:33:12] [%emt 00:10:28]} 9...Bd7 {[%clk
01:35:53] [%emt 00:03:58]} 10.Qc2 {[%clk 01:19:39] [%emt 00:14:02]} 10...Nh7 
{[%clk 01:24:48] [%emt 00:11:35]} 11.g3 {[%clk 01:13:36] [%emt 00:06:34]} 
11...f5 {[%clk 01:13:13] [%emt 00:12:06]} 12.a3 {[%clk 00:59:01] [%emt
00:15:04]} 12...O-O {[%clk 01:09:58] [%emt 00:03:45]} 13.exf5 {[%clk 00:54:54]
[%emt 00:04:37]} 13...gxf5 {[%clk 01:08:48] [%emt 00:01:41]} 14.O-O-O {[%clk
00:54:44] [%emt 00:00:39]} 14...Nc5 {[%clk 01:04:57] [%emt 00:04:21]} 15.g4 
{[%clk 00:52:53] [%emt 00:02:21]} 15...e4 {[%clk 01:01:58] [%emt 00:03:30]} 
16.Nd2 {[%clk 00:51:04] [%emt 00:02:19]} 16...Qe7 {[%clk 00:29:20] [%emt
00:33:07]} 17.Kb1 {[%clk 00:41:36] [%emt 00:09:58]} 17...Kh8 {[%clk 00:28:59]
[%emt 00:00:52]} 18.Rhg1 {[%clk 00:35:57] [%emt 00:06:08]} 18...Na4 {[%clk
00:22:43] [%emt 00:06:47]} 19.gxf5 {[%clk 00:26:35] [%emt 00:09:52]} 19...Nxc3+ 
{[%clk 00:23:05] [%emt 00:00:07]} 20.bxc3 {[%clk 00:27:02] [%emt 00:00:03]} 
20...Bxf5 {[%clk 00:23:30] [%emt 00:00:06]} 21.Bxh5 {[%clk 00:26:37] [%emt
00:00:54]} 21...b5 {[%clk 00:18:20] [%emt 00:05:41]} 22.Bg6 {[%clk 00:26:08]
[%emt 00:00:58]} 22...bxc4 {[%clk 00:12:35] [%emt 00:06:16]} 23.Bxf5 {[%clk
00:26:18] [%emt 00:00:19]} 23...Rxf5 {[%clk 00:13:04] [%emt 00:00:02]} 24.Qxe4 
{[%clk 00:26:05] [%emt 00:00:42]} 24...Rb8+ {[%clk 00:12:01] [%emt 00:01:33]} 
25.Kc2 {[%clk 00:25:18] [%emt 00:01:17]} 25...Qd7 {[%clk 00:09:34] [%emt
00:02:57]} 26.Qxc4 {[%clk 00:25:31] [%emt 00:00:16]} 26...Re5 {[%clk 00:05:58]
[%emt 00:04:07]} 27.Qg4 {[%clk 00:25:20] [%emt 00:00:41]} 27...Qxg4 {[%clk
00:06:23] [%emt 00:00:06]} 28.hxg4 {[%clk 00:25:40] [%emt 00:00:09]} 28...Rxd5 
{[%clk 00:06:46] [%emt 00:00:07]} 29.Rb1 {[%clk 00:21:46] [%emt 00:04:24]} 
29...Rdb5 {[%clk 00:04:34] [%emt 00:02:43]} 30.Rxb5 {[%clk 00:22:10] [%emt
00:00:05]} 30...Rxb5 {[%clk 00:05:02] [%emt 00:00:03]} 31.a4 {[%clk 00:22:06]
[%emt 00:00:34]} 31...Rb8 {[%clk 00:05:16] [%emt 00:00:15]} 32.g5 {[%clk
00:21:35] [%emt 00:01:00]} 32...Nf8 {[%clk 00:05:08] [%emt 00:00:39]} 33.f4 
{[%clk 00:21:38] [%emt 00:00:27]} 33...Re8 {[%clk 00:05:35] [%emt 00:00:03]} 
34.Rg3 {[%clk 00:21:55] [%emt 00:00:13]} 34...Nd7 {[%clk 00:05:43] [%emt
00:00:23]} 35.f5 {[%clk 00:21:55] [%emt 00:00:29]} 35...Be5 {[%clk 00:06:07]
[%emt 00:00:06]} 36.Rh3+ {[%clk 00:22:20] [%emt 00:00:05]} 36...Kg8 {[%clk
00:06:34] [%emt 00:00:03]} 37.Nc4 {[%clk 00:22:37] [%emt 00:00:12]} 37...d5 
{[%clk 00:05:47] [%emt 00:01:18]} 38.Nxa5 {[%clk 00:22:39] [%emt 00:00:28]} 
38...Ra8 {[%clk 00:06:11] [%emt 00:00:07]} 39.Nc6 {[%clk 00:23:05] [%emt
00:00:04]} 39...Rxa4 {[%clk 00:06:16] [%emt 00:00:25]} 40.Nxe5 {[%clk 00:22:07]
[%emt 00:01:27]} 40...Nxe5 {[%clk 00:06:41] [%emt 00:00:05]} 41.Bd4 {[%clk
00:22:33] [%emt 00:00:04]} 41...Ra2+ {[%clk 00:06:51] [%emt 00:00:20]} 42.Kd1 
{[%clk 00:22:56] [%emt 00:00:06]} 42...Ra1+ {[%clk 00:06:54] [%emt 00:00:28]} 
43.Ke2 {[%clk 00:23:20] [%emt 00:00:07]} 43...Ra2+ {[%clk 00:07:21] [%emt
00:00:03]} 44.Kf1 {[%clk 00:23:43] [%emt 00:00:06]} 44...Ra1+ {[%clk 00:07:44]
[%emt 00:00:07]} 45.Kf2 {[%clk 00:23:25] [%emt 00:00:48]} 45...Ra2+ {[%clk
00:08:03] [%emt 00:00:12]} 46.Ke3 {[%clk 00:22:48] [%emt 00:01:06]} 46...Ra4 
{[%clk 00:08:07] [%emt 00:00:26]} 47.g6 {[%clk 00:20:42] [%emt 00:02:36]} 1-0